[Event "*** Titled Tuesday Blitz"]
[Site "Chess.com"]
[Date "2020.12.01"]
[Round "8"]
[White "zverr1"]
[Black "temus_galaktionov"]
[Result "0-1"]
[WhiteElo "2476"]
[BlackElo "2693"]
[TimeControl "180+1"]
[EndTime "11:25:50 PST"]
[Termination "temus_galaktionov won by resignation"]

1. d4 {[%clk 0:03:00.9]} 1... c6 {[%clk 0:03:00.9]} 2. c4 {[%clk 0:02:59.5]}
2... g6 {[%clk 0:03:01.8]} 3. h4 {[%clk 0:02:58.5]} 3... Bg7 {[%clk 0:03:02.3]}
4. h5 {[%clk 0:02:58.6]} 4... d6 {[%clk 0:03:03.2]} 5. Nc3 {[%clk 0:02:57.3]}
5... Qb6 {[%clk 0:03:02.2]} 6. Nf3 {[%clk 0:02:54.5]} 6... Bg4 {[%clk
0:03:01.1]} 7. hxg6 {[%clk 0:02:53.2]} 7... hxg6 {[%clk 0:03:02]} 8. Rxh8 {[%clk
0:02:53.8]} 8... Bxh8 {[%clk 0:03:02.5]} 9. e3 {[%clk 0:02:52.9]} 9... Nd7
{[%clk 0:03:01.9]} 10. Be2 {[%clk 0:02:52.1]} 10... Ngf6 {[%clk 0:03:01.1]} 11.
Qb3 {[%clk 0:02:51.3]} 11... O-O-O {[%clk 0:02:58.7]} 12. Qxb6 {[%clk
0:02:50.6]} 12... axb6 {[%clk 0:02:59.6]} 13. a4 {[%clk 0:02:46.5]} 13... Kc7
{[%clk 0:02:57.1]} 14. a5 {[%clk 0:02:44]} 14... bxa5 {[%clk 0:02:56.8]} 15.
Rxa5 {[%clk 0:02:44.2]} 15... Bg7 {[%clk 0:02:57.2]} 16. b4 {[%clk 0:02:40.4]}
16... Rh8 {[%clk 0:02:53.7]} 17. Bb2 {[%clk 0:02:20.3]} 17... Rh1+ {[%clk
0:02:30.8]} 18. Kd2 {[%clk 0:02:18.9]} 18... Nb6 {[%clk 0:02:31.7]} 19. b5
{[%clk 0:01:59.4]} 19... c5 {[%clk 0:02:23.1]} 20. dxc5 {[%clk 0:01:54.5]} 20...
dxc5 {[%clk 0:02:24]} 21. Ne5 {[%clk 0:01:49.8]} 21... Bxe2 {[%clk 0:02:13.5]}
22. Kxe2 {[%clk 0:01:38.2]} 22... Nfd7 {[%clk 0:02:11.2]} 23. Nxd7 {[%clk
0:01:15.9]} 23... Nxc4 {[%clk 0:02:10.7]} 24. Nd5+ {[%clk 0:00:45.8]} 24... Kxd7
{[%clk 0:02:09.9]} 25. Ra7 {[%clk 0:00:45.5]} 25... Bxb2 {[%clk 0:01:58.3]} 26.
Rxb7+ {[%clk 0:00:43.3]} 26... Ke6 {[%clk 0:01:54.3]} 27. e4 {[%clk 0:00:41.6]}
27... Bf6 {[%clk 0:01:52.8]} 28. f4 {[%clk 0:00:32.1]} 28... Rb1 {[%clk
0:01:43.1]} 29. g4 {[%clk 0:00:25.5]} 29... Nd6 {[%clk 0:01:42.2]} 30. Nc7+
{[%clk 0:00:19.8]} 30... Kd7 {[%clk 0:01:38.6]} 31. Ra7 {[%clk 0:00:20.7]} 31...
Nxe4 {[%clk 0:01:33.3]} 32. b6 {[%clk 0:00:21.1]} 32... Kc6 {[%clk 0:01:30.1]}
33. Na8 {[%clk 0:00:19.8]} 33... Nc3+ {[%clk 0:01:11.6]} 34. Kd3 {[%clk
0:00:17.6]} 34... Nd5 {[%clk 0:01:11.1]} 35. g5 {[%clk 0:00:11.7]} 35... Bd4
{[%clk 0:01:09.5]} 36. Ra6 {[%clk 0:00:10.5]} 36... Nb4+ {[%clk 0:01:05.7]} 0-1

[Event "*** Titled Tuesday Blitz"]
[Site "Chess.com"]
[Date "2020.12.01"]
[Round "8"]
[White "Skatchkov_V"]
[Black "Trickov"]
[Result "1-0"]
[WhiteElo "2495"]
[BlackElo "2341"]
[TimeControl "180+1"]
[EndTime "11:25:50 PST"]
[Termination "Skatchkov_V won by resignation"]

1. d4 {[%clk 0:03:00.9]} 1... d5 {[%clk 0:02:57.5]} 2. c4 {[%clk 0:03:00.8]}
2... c6 {[%clk 0:02:55.7]} 3. Nf3 {[%clk 0:03:00.2]} 3... Nf6 {[%clk 0:02:52.7]}
4. Nc3 {[%clk 0:03:00.2]} 4... dxc4 {[%clk 0:02:52.3]} 5. a4 {[%clk 0:02:59.7]}
5... Bf5 {[%clk 0:02:50.8]} 6. Ne5 {[%clk 0:02:59.9]} 6... Nbd7 {[%clk
0:02:49.6]} 7. Nxc4 {[%clk 0:03:00.3]} 7... Qc7 {[%clk 0:02:48.5]} 8. Qd2 {[%clk
0:03:00.8]} 8... Rd8 {[%clk 0:02:43.6]} 9. Qf4 {[%clk 0:02:57.3]} 9... Qxf4
{[%clk 0:02:36.4]} 10. Bxf4 {[%clk 0:02:58.2]} 10... Nb6 {[%clk 0:02:34.5]} 11.
Nxb6 {[%clk 0:02:44.2]} 11... axb6 {[%clk 0:02:33.3]} 12. e3 {[%clk 0:02:45.1]}
12... Nd5 {[%clk 0:02:22.7]} 13. Nxd5 {[%clk 0:02:42.7]} 13... Rxd5 {[%clk
0:02:22.7]} 14. Bc7 {[%clk 0:02:39.7]} 14... e5 {[%clk 0:02:01.1]} 15. Bc4
{[%clk 0:02:36.6]} 15... Bb4+ {[%clk 0:02:00.1]} 16. Ke2 {[%clk 0:02:36.2]}
16... Rd7 {[%clk 0:01:57.8]} 17. Bxe5 {[%clk 0:02:34.1]} 17... O-O {[%clk
0:01:41]} 18. f3 {[%clk 0:02:29.2]} 18... Re8 {[%clk 0:01:38.5]} 19. g4 {[%clk
0:02:28.3]} 19... Be6 {[%clk 0:01:37.4]} 20. Bxe6 {[%clk 0:02:26.6]} 20... Rxe6
{[%clk 0:01:37.5]} 21. Rhd1 {[%clk 0:02:10.1]} 21... c5 {[%clk 0:01:28.1]} 22.
dxc5 {[%clk 0:01:44.4]} 22... Rxd1 {[%clk 0:01:20.5]} 23. Rxd1 {[%clk
0:01:45.3]} 23... f6 {[%clk 0:01:20]} 24. Rd8+ {[%clk 0:01:33.9]} 24... Kf7
{[%clk 0:01:17.8]} 25. Bd6 {[%clk 0:01:33.7]} 25... bxc5 {[%clk 0:01:06.6]} 26.
f4 {[%clk 0:01:33.2]} 26... Re4 {[%clk 0:00:50.3]} 27. Kd3 {[%clk 0:01:30.2]}
27... Re8 {[%clk 0:00:36.6]} 28. Rxe8 {[%clk 0:01:26.3]} 28... Kxe8 {[%clk
0:00:35.9]} 29. Kc4 {[%clk 0:01:26.6]} 29... b6 {[%clk 0:00:32.7]} 30. Kb5
{[%clk 0:01:26]} 30... Kd7 {[%clk 0:00:30.9]} 31. Bf8 {[%clk 0:01:20]} 31... Bd2
{[%clk 0:00:29]} 32. Bxg7 {[%clk 0:01:18.3]} 32... Bxe3 {[%clk 0:00:27.8]} 33.
Bxf6 {[%clk 0:01:18.4]} 33... Bxf4 {[%clk 0:00:26.2]} 34. Kxb6 {[%clk
0:01:18.7]} 34... c4 {[%clk 0:00:25.2]} 35. h3 {[%clk 0:01:17.7]} 35... Kc8
{[%clk 0:00:17.4]} 36. Kb5 {[%clk 0:01:17.2]} 1-0

[Event "*** Titled Tuesday Blitz"]
[Site "Chess.com"]
[Date "2020.12.01"]
[Round "8"]
[White "niki_2003"]
[Black "lacafi"]
[Result "1-0"]
[WhiteElo "2027"]
[BlackElo "2188"]
[TimeControl "180+1"]
[EndTime "11:25:50 PST"]
[Termination "niki_2003 won by resignation"]

1. d4 {[%clk 0:02:57.8]} 1... f5 {[%clk 0:02:58.8]} 2. Nc3 {[%clk 0:02:57]} 2...
Nf6 {[%clk 0:02:58.5]} 3. Bg5 {[%clk 0:02:55.2]} 3... g6 {[%clk 0:02:57.9]} 4.
Bxf6 {[%clk 0:02:46.1]} 4... exf6 {[%clk 0:02:58.8]} 5. e4 {[%clk 0:02:43.7]}
5... fxe4 {[%clk 0:02:54]} 6. Nxe4 {[%clk 0:02:43.3]} 6... d5 {[%clk 0:02:54.6]}
7. Nc3 {[%clk 0:02:41.6]} 7... Qe7+ {[%clk 0:02:52.8]} 8. Qe2 {[%clk 0:02:40.4]}
8... Qxe2+ {[%clk 0:02:52.3]} 9. Bxe2 {[%clk 0:02:40.9]} 9... c6 {[%clk
0:02:52.9]} 10. O-O-O {[%clk 0:02:41]} 10... Bd6 {[%clk 0:02:51]} 11. h4 {[%clk
0:02:38.8]} 11... O-O {[%clk 0:02:49.9]} 12. h5 {[%clk 0:02:39.4]} 12... g5
{[%clk 0:02:50]} 13. Bd3 {[%clk 0:02:38.3]} 13... f5 {[%clk 0:02:42]} 14. Nf3
{[%clk 0:02:33.7]} 14... Nd7 {[%clk 0:02:34.9]} 15. g3 {[%clk 0:02:30.3]} 15...
h6 {[%clk 0:02:33.4]} 16. Rde1 {[%clk 0:02:25.3]} 16... Nf6 {[%clk 0:02:27.6]}
17. Kb1 {[%clk 0:02:16.8]} 17... f4 {[%clk 0:02:02.8]} 18. gxf4 {[%clk
0:02:12.5]} 18... Bxf4 {[%clk 0:02:02.2]} 19. Ne5 {[%clk 0:02:05.3]} 19... Kg7
{[%clk 0:01:34.6]} 20. Ng6 {[%clk 0:02:00.9]} 20... Re8 {[%clk 0:01:34.5]} 21.
Nxf4 {[%clk 0:01:49.8]} 21... gxf4 {[%clk 0:01:32.8]} 22. Rhg1+ {[%clk
0:01:48.3]} 22... Kf8 {[%clk 0:01:28.6]} 23. Rxe8+ {[%clk 0:01:40.8]} 23... Kxe8
{[%clk 0:01:23.9]} 24. Rg6 {[%clk 0:01:23.3]} 24... Nxh5 {[%clk 0:01:15.9]} 25.
Rxh6 {[%clk 0:01:22.2]} 25... Ng7 {[%clk 0:01:15.5]} 26. Rh8+ {[%clk 0:01:21.8]}
26... Ke7 {[%clk 0:01:12.6]} 27. Rh4 {[%clk 0:01:16.6]} 27... Ne6 {[%clk
0:01:01.6]} 28. Bf5 {[%clk 0:01:15]} 28... Bd7 {[%clk 0:01:00.1]} 29. Bxe6
{[%clk 0:01:15.1]} 29... Bxe6 {[%clk 0:00:57.6]} 30. Rxf4 {[%clk 0:01:15.6]}
30... Rg8 {[%clk 0:00:57.1]} 31. b3 {[%clk 0:01:14.8]} 31... Kd6 {[%clk
0:00:51.8]} 32. Kb2 {[%clk 0:01:14.6]} 32... b6 {[%clk 0:00:51.6]} 33. Ne2
{[%clk 0:01:12.1]} 33... c5 {[%clk 0:00:49.5]} 34. Rf6 {[%clk 0:01:10.7]} 34...
Ke7 {[%clk 0:00:48.5]} 35. Rf4 {[%clk 0:01:06.2]} 35... Rg2 {[%clk 0:00:46.4]}
36. a3 {[%clk 0:00:48.9]} 36... Kd6 {[%clk 0:00:33.3]} 37. Rf6 {[%clk
0:00:46.3]} 37... Ke7 {[%clk 0:00:32.7]} 38. Rxe6+ {[%clk 0:00:46.3]} 1-0

[Event "*** Titled Tuesday Blitz"]
[Site "Chess.com"]
[Date "2020.12.01"]
[Round "8"]
[White "AquivaRubinstein"]
[Black "UCantHandleDenker"]
[Result "0-1"]
[WhiteElo "2485"]
[BlackElo "2534"]
[TimeControl "180+1"]
[EndTime "11:25:54 PST"]
[Termination "UCantHandleDenker won by resignation"]

1. e4 {[%clk 0:03:00.9]} 1... c5 {[%clk 0:02:30.3]} 2. Nf3 {[%clk 0:03:00.4]}
2... d6 {[%clk 0:02:29.9]} 3. d4 {[%clk 0:03:00.5]} 3... cxd4 {[%clk 0:02:30.4]}
4. Nxd4 {[%clk 0:03:00.6]} 4... Nf6 {[%clk 0:02:30.9]} 5. Nc3 {[%clk 0:03:00.7]}
5... g6 {[%clk 0:02:31.3]} 6. Be3 {[%clk 0:02:59.8]} 6... Bg7 {[%clk 0:02:31.9]}
7. f3 {[%clk 0:02:59.8]} 7... O-O {[%clk 0:02:32.8]} 8. Qd2 {[%clk 0:02:59.6]}
8... Nc6 {[%clk 0:02:33.3]} 9. Bc4 {[%clk 0:02:59.4]} 9... Bd7 {[%clk 0:02:33]}
10. O-O-O {[%clk 0:02:59.3]} 10... Qa5 {[%clk 0:02:32.5]} 11. Bb3 {[%clk
0:02:48.8]} 11... Ne5 {[%clk 0:02:30.5]} 12. g4 {[%clk 0:02:38.4]} 12... Rfc8
{[%clk 0:02:30]} 13. Kb1 {[%clk 0:02:26.2]} 13... b5 {[%clk 0:02:22.3]} 14. h4
{[%clk 0:02:08.8]} 14... Nc4 {[%clk 0:02:12.9]} 15. Bxc4 {[%clk 0:02:06.6]}
15... bxc4 {[%clk 0:02:12.9]} 16. g5 {[%clk 0:01:13]} 16... Nh5 {[%clk
0:02:01.8]} 17. Nce2 {[%clk 0:00:54.4]} 17... Qc7 {[%clk 0:01:48.3]} 18. c3
{[%clk 0:00:47.2]} 18... Rab8 {[%clk 0:01:38.6]} 19. f4 {[%clk 0:00:46.4]} 19...
Bc6 {[%clk 0:01:34.7]} 20. Nxc6 {[%clk 0:00:41.7]} 20... Qxc6 {[%clk 0:01:34.2]}
21. Qc2 {[%clk 0:00:38.8]} 21... Rb7 {[%clk 0:01:24.8]} 22. Nd4 {[%clk
0:00:36.3]} 22... Bxd4 {[%clk 0:01:23.3]} 23. Rxd4 {[%clk 0:00:34.9]} 23... Rcb8
{[%clk 0:01:07.1]} 24. Bc1 {[%clk 0:00:34.4]} 24... Nxf4 {[%clk 0:01:02.5]} 25.
Rf1 {[%clk 0:00:17.3]} 25... Nd3 {[%clk 0:00:59.9]} 26. b3 {[%clk 0:00:14.7]}
26... Nxc1 {[%clk 0:00:53]} 27. Kxc1 {[%clk 0:00:11.8]} 27... cxb3 {[%clk
0:00:52.1]} 28. axb3 {[%clk 0:00:11.9]} 28... Rxb3 {[%clk 0:00:51.3]} 29. Rb4
{[%clk 0:00:12]} 29... R8xb4 {[%clk 0:00:49.4]} 30. cxb4 {[%clk 0:00:12.1]}
30... Rc3 {[%clk 0:00:49.6]} 31. Qxc3 {[%clk 0:00:10.8]} 31... Qxc3+ {[%clk
0:00:49]} 0-1

[Event "*** Titled Tuesday Blitz"]
[Site "Chess.com"]
[Date "2020.12.01"]
[Round "8"]
[White "stepanosinovsky"]
[Black "Gogolev_Artemy"]
[Result "1-0"]
[WhiteElo "2314"]
[BlackElo "2405"]
[TimeControl "180+1"]
[EndTime "11:25:54 PST"]
[Termination "stepanosinovsky won by resignation"]

1. g3 {[%clk 0:03:00.9]} 1... Nf6 {[%clk 0:02:58.6]} 2. Bg2 {[%clk 0:02:59.3]}
2... g6 {[%clk 0:02:57.8]} 3. e4 {[%clk 0:02:57.8]} 3... d6 {[%clk 0:02:51.1]}
4. d4 {[%clk 0:02:57]} 4... Bg7 {[%clk 0:02:51.1]} 5. Ne2 {[%clk 0:02:54.3]}
5... O-O {[%clk 0:02:50.9]} 6. O-O {[%clk 0:02:54.8]} 6... c5 {[%clk 0:02:50.4]}
7. c3 {[%clk 0:02:44.9]} 7... cxd4 {[%clk 0:02:31.8]} 8. cxd4 {[%clk 0:02:44.4]}
8... Bg4 {[%clk 0:02:28]} 9. h3 {[%clk 0:02:42.2]} 9... Bxe2 {[%clk 0:02:21.8]}
10. Qxe2 {[%clk 0:02:41.8]} 10... Nc6 {[%clk 0:02:22.7]} 11. Be3 {[%clk
0:02:38.7]} 11... Qa5 {[%clk 0:02:14.5]} 12. Nd2 {[%clk 0:02:18.5]} 12... Nd7
{[%clk 0:02:11.4]} 13. Nb3 {[%clk 0:02:17.4]} 13... Qa4 {[%clk 0:02:04.7]} 14.
Rfc1 {[%clk 0:02:11.7]} 14... Rfc8 {[%clk 0:01:58.8]} 15. Rc4 {[%clk 0:02:05.3]}
15... Qa6 {[%clk 0:01:57.3]} 16. Bf1 {[%clk 0:02:04]} 16... Nb6 {[%clk
0:01:55.6]} 17. Rcc1 {[%clk 0:01:55.7]} 17... Qxe2 {[%clk 0:01:55]} 18. Bxe2
{[%clk 0:01:56.6]} 18... Na4 {[%clk 0:01:52.2]} 19. Bb5 {[%clk 0:01:51.1]} 19...
Nb6 {[%clk 0:01:40.6]} 20. a4 {[%clk 0:01:50.2]} 20... a6 {[%clk 0:01:34.1]} 21.
Be2 {[%clk 0:01:49]} 21... Nb4 {[%clk 0:01:31.4]} 22. a5 {[%clk 0:01:44.3]}
22... Nd7 {[%clk 0:01:30.2]} 23. Bd2 {[%clk 0:01:41.3]} 23... Nc6 {[%clk
0:01:23.2]} 24. Be3 {[%clk 0:01:28.8]} 24... Nb4 {[%clk 0:01:22.5]} 25. Bd2
{[%clk 0:01:06.4]} 25... Nc2 {[%clk 0:01:21.7]} 26. Ra4 {[%clk 0:01:02.1]} 26...
e5 {[%clk 0:00:51.5]} 27. Bg4 {[%clk 0:00:33.5]} 27... f5 {[%clk 0:00:43.3]} 28.
exf5 {[%clk 0:00:33.2]} 28... Nxd4 {[%clk 0:00:42.4]} 29. Rxc8+ {[%clk
0:00:30.8]} 29... Rxc8 {[%clk 0:00:41.8]} 30. Nxd4 {[%clk 0:00:30.5]} 30... exd4
{[%clk 0:00:41.8]} 31. fxg6 {[%clk 0:00:30.6]} 31... Rc2 {[%clk 0:00:36.3]} 32.
gxh7+ {[%clk 0:00:29]} 32... Kxh7 {[%clk 0:00:35.3]} 33. Bf5+ {[%clk 0:00:28.7]}
1-0

[Event "*** Titled Tuesday Blitz"]
[Site "Chess.com"]
[Date "2020.12.01"]
[Round "8"]
[White "mortngabriel"]
[Black "mjray79"]
[Result "1-0"]
[WhiteElo "2295"]
[BlackElo "2417"]
[TimeControl "180+1"]
[EndTime "11:25:55 PST"]
[Termination "mortngabriel won by resignation"]

1. Nf3 {[%clk 0:03:00.9]} 1... Nf6 {[%clk 0:02:59.6]} 2. d4 {[%clk 0:02:59.8]}
2... g6 {[%clk 0:03:00.2]} 3. Nc3 {[%clk 0:02:58.3]} 3... Bg7 {[%clk 0:03:00.7]}
4. e4 {[%clk 0:02:58.3]} 4... d6 {[%clk 0:03:01.2]} 5. Be3 {[%clk 0:02:58.8]}
5... Nc6 {[%clk 0:03:00.1]} 6. Qd2 {[%clk 0:02:59]} 6... Bg4 {[%clk 0:03:00.4]}
7. O-O-O {[%clk 0:02:58.4]} 7... e5 {[%clk 0:02:58.6]} 8. Bb5 {[%clk 0:02:50.5]}
8... Bxf3 {[%clk 0:02:47.9]} 9. gxf3 {[%clk 0:02:49]} 9... exd4 {[%clk
0:02:45.9]} 10. Bxd4 {[%clk 0:02:48]} 10... a6 {[%clk 0:02:45.2]} 11. Bxc6+
{[%clk 0:02:46]} 11... bxc6 {[%clk 0:02:46.1]} 12. Be3 {[%clk 0:02:30.8]} 12...
Rb8 {[%clk 0:02:42.7]} 13. Bh6 {[%clk 0:02:28.2]} 13... Bxh6 {[%clk 0:02:40.3]}
14. Qxh6 {[%clk 0:02:27.4]} 14... Qe7 {[%clk 0:02:40.4]} 15. f4 {[%clk
0:02:09.2]} 15... Ng4 {[%clk 0:02:18.8]} 16. Qg7 {[%clk 0:02:08.7]} 16... Rf8
{[%clk 0:02:19]} 17. Qd4 {[%clk 0:01:57.9]} 17... c5 {[%clk 0:02:14.2]} 18. Qd2
{[%clk 0:01:57.6]} 18... Kd7 {[%clk 0:01:56.9]} 19. f3 {[%clk 0:01:52.8]} 19...
Nf6 {[%clk 0:01:55.9]} 20. e5 {[%clk 0:01:45.5]} 20... Ne8 {[%clk 0:01:55.8]}
21. Rhe1 {[%clk 0:01:40]} 21... Kc8 {[%clk 0:01:49.1]} 22. Qd3 {[%clk
0:01:21.4]} 22... Rb6 {[%clk 0:01:45.6]} 23. Nd5 {[%clk 0:01:19.6]} 23... Qd8
{[%clk 0:01:40.6]} 24. Nxb6+ {[%clk 0:01:19.5]} 24... cxb6 {[%clk 0:01:41.5]}
25. Qxa6+ {[%clk 0:01:17.5]} 25... Kb8 {[%clk 0:01:41.9]} 26. exd6 {[%clk
0:01:17.6]} 26... Nxd6 {[%clk 0:01:42.8]} 27. Rd3 {[%clk 0:00:57.6]} 27... Qc7
{[%clk 0:01:39.4]} 28. Red1 {[%clk 0:00:54.3]} 28... Rd8 {[%clk 0:01:31.9]} 29.
Kb1 {[%clk 0:00:52.1]} 29... Qc6 {[%clk 0:01:23.8]} 30. c4 {[%clk 0:00:38.9]}
30... Rd7 {[%clk 0:01:21.1]} 31. a4 {[%clk 0:00:19.2]} 31... Ra7 {[%clk
0:00:50.6]} 32. Rxd6 {[%clk 0:00:18.6]} 32... Qxd6 {[%clk 0:00:50.9]} 33. Qxa7+
{[%clk 0:00:18.6]} 33... Kxa7 {[%clk 0:00:49.8]} 34. Rxd6 {[%clk 0:00:19.1]} 1-0

[Event "*** Titled Tuesday Blitz"]
[Site "Chess.com"]
[Date "2020.12.01"]
[Round "8"]
[White "tolimachess"]
[Black "Pertinhez76"]
[Result "1-0"]
[WhiteElo "2441"]
[BlackElo "2031"]
[TimeControl "180+1"]
[EndTime "11:25:56 PST"]
[Termination "tolimachess won by resignation"]

1. e4 {[%clk 0:03:00.9]} 1... e6 {[%clk 0:02:59.7]} 2. d4 {[%clk 0:02:59.8]}
2... d5 {[%clk 0:02:59.1]} 3. Nd2 {[%clk 0:03:00]} 3... Nf6 {[%clk 0:02:58.5]}
4. e5 {[%clk 0:02:59.3]} 4... Nfd7 {[%clk 0:02:59.1]} 5. Bd3 {[%clk 0:02:58.7]}
5... c5 {[%clk 0:03:00]} 6. c3 {[%clk 0:02:58.6]} 6... Nc6 {[%clk 0:03:00.8]} 7.
Ne2 {[%clk 0:02:58.4]} 7... cxd4 {[%clk 0:03:00.7]} 8. cxd4 {[%clk 0:02:58]}
8... f6 {[%clk 0:03:01.6]} 9. exf6 {[%clk 0:02:56.9]} 9... Nxf6 {[%clk
0:03:01.1]} 10. Nf3 {[%clk 0:02:57.2]} 10... Bd6 {[%clk 0:03:01.7]} 11. O-O
{[%clk 0:02:54.6]} 11... Qc7 {[%clk 0:03:01.6]} 12. Bg5 {[%clk 0:02:52.1]} 12...
O-O {[%clk 0:03:00]} 13. Rc1 {[%clk 0:02:52.1]} 13... h6 {[%clk 0:02:58.2]} 14.
Bh4 {[%clk 0:02:51.6]} 14... Nh5 {[%clk 0:02:50.1]} 15. Bb1 {[%clk 0:02:34.8]}
15... Bd7 {[%clk 0:02:07.6]} 16. Qd3 {[%clk 0:02:29.6]} 16... Rf5 {[%clk
0:02:01.5]} 17. Ng3 {[%clk 0:02:23.2]} 17... Nxg3 {[%clk 0:01:59.8]} 18. Bxg3
{[%clk 0:02:22.9]} 18... Bxg3 {[%clk 0:01:46.5]} 19. hxg3 {[%clk 0:02:19.9]}
19... Qd6 {[%clk 0:01:40.8]} 20. Nh4 {[%clk 0:02:17.1]} 20... Nb4 {[%clk
0:01:39]} 21. Nxf5 {[%clk 0:02:11.3]} 21... exf5 {[%clk 0:01:35.4]} 22. Qf3
{[%clk 0:02:00.2]} 22... Rf8 {[%clk 0:01:27.5]} 23. Qf4 {[%clk 0:01:55]} 23...
Qxf4 {[%clk 0:01:20.9]} 24. gxf4 {[%clk 0:01:55.9]} 24... Bb5 {[%clk 0:01:19.9]}
25. Rfe1 {[%clk 0:01:54.6]} 25... Rf7 {[%clk 0:01:17.1]} 26. Re5 {[%clk
0:01:45.3]} 26... g6 {[%clk 0:01:12]} 27. a3 {[%clk 0:01:39.8]} 27... Nc6 {[%clk
0:01:07.3]} 28. Rxd5 {[%clk 0:01:39.7]} 28... Be2 {[%clk 0:01:04.7]} 29. f3
{[%clk 0:01:29.7]} 29... Ba6 {[%clk 0:01:01.1]} 30. Kf2 {[%clk 0:01:26.7]} 30...
Kg7 {[%clk 0:01:01]} 31. b4 {[%clk 0:01:24.2]} 31... Ne7 {[%clk 0:00:56.6]} 32.
Rd7 {[%clk 0:01:22]} 32... Bb5 {[%clk 0:00:56.1]} 33. Rxb7 {[%clk 0:01:20.3]}
33... Nc6 {[%clk 0:00:25.3]} 34. Rxb5 {[%clk 0:01:14.1]} 34... Nxd4 {[%clk
0:00:25.3]} 35. Rd5 {[%clk 0:01:06.2]} 35... Nb3 {[%clk 0:00:22.8]} 36. Rc3
{[%clk 0:01:03.1]} 36... Na1 {[%clk 0:00:22.9]} 37. Bd3 {[%clk 0:00:59.7]} 37...
Re7 {[%clk 0:00:21.4]} 38. b5 {[%clk 0:00:58.7]} 38... h5 {[%clk 0:00:19.4]} 39.
Rdc5 {[%clk 0:00:57.2]} 1-0

[Event "*** Titled Tuesday Blitz"]
[Site "Chess.com"]
[Date "2020.12.01"]
[Round "8"]
[White "Susal_De_Silva"]
[Black "SlavenPastar"]
[Result "1-0"]
[WhiteElo "2664"]
[BlackElo "2511"]
[TimeControl "180+1"]
[EndTime "11:25:57 PST"]
[Termination "Susal_De_Silva won by resignation"]

1. e4 {[%clk 0:03:00.9]} 1... b6 {[%clk 0:03:00.9]} 2. d4 {[%clk 0:03:00.4]}
2... Bb7 {[%clk 0:03:01.4]} 3. Nc3 {[%clk 0:03:00.9]} 3... e6 {[%clk 0:03:01.5]}
4. Nf3 {[%clk 0:03:01.4]} 4... Bb4 {[%clk 0:03:01.1]} 5. Bd3 {[%clk 0:03:02]}
5... Nf6 {[%clk 0:03:01.3]} 6. e5 {[%clk 0:02:59.4]} 6... Ne4 {[%clk 0:03:01.3]}
7. Bd2 {[%clk 0:02:59.4]} 7... Nxd2 {[%clk 0:03:00.5]} 8. Qxd2 {[%clk
0:02:59.1]} 8... Bxf3 {[%clk 0:03:01.1]} 9. gxf3 {[%clk 0:02:58.8]} 9... Qh4
{[%clk 0:03:00.8]} 10. a3 {[%clk 0:02:45.9]} 10... Bxc3 {[%clk 0:02:55.7]} 11.
Qxc3 {[%clk 0:02:27.2]} 11... Nc6 {[%clk 0:02:55.7]} 12. Be4 {[%clk 0:02:25.9]}
12... O-O-O {[%clk 0:02:55.1]} 13. O-O-O {[%clk 0:02:23.6]} 13... Kb8 {[%clk
0:02:29.7]} 14. Kb1 {[%clk 0:02:18]} 14... Qxf2 {[%clk 0:01:54.9]} 15. d5 {[%clk
0:02:14.5]} 15... exd5 {[%clk 0:01:51.9]} 16. Rxd5 {[%clk 0:02:15.4]} 16... Ne7
{[%clk 0:01:23.8]} 17. Rd3 {[%clk 0:02:10.2]} 17... Qc5 {[%clk 0:01:23.4]} 18.
Qxc5 {[%clk 0:02:00.6]} 18... bxc5 {[%clk 0:01:23.6]} 19. Rb3+ {[%clk
0:02:01.3]} 19... Kc8 {[%clk 0:01:23.6]} 20. Bb7+ {[%clk 0:02:02.1]} 20... Kb8
{[%clk 0:01:23.3]} 21. Ba6+ {[%clk 0:01:50.1]} 21... Ka8 {[%clk 0:01:22.1]} 22.
Rd1 {[%clk 0:01:51]} 22... d5 {[%clk 0:00:52.4]} 23. Bb7+ {[%clk 0:01:38.8]}
23... Kb8 {[%clk 0:00:52.1]} 24. Bxd5+ {[%clk 0:01:37.9]} 24... Kc8 {[%clk
0:00:50.6]} 25. Bb7+ {[%clk 0:01:38.4]} 25... Kb8 {[%clk 0:00:50.9]} 26. Be4+
{[%clk 0:01:16.7]} 26... Kc8 {[%clk 0:00:47.9]} 27. Rg1 {[%clk 0:01:17.1]} 27...
g6 {[%clk 0:00:39.9]} 28. Rb7 {[%clk 0:01:11.5]} 28... Rd2 {[%clk 0:00:27]} 29.
Rxa7 {[%clk 0:01:09.4]} 29... Rhd8 {[%clk 0:00:25.9]} 30. Kc1 {[%clk 0:01:05.1]}
30... R2d4 {[%clk 0:00:15.2]} 31. c3 {[%clk 0:01:01.3]} 31... Rxe4 {[%clk
0:00:15]} 32. fxe4 {[%clk 0:01:02.2]} 32... Nc6 {[%clk 0:00:15.6]} 33. Ra4
{[%clk 0:00:58.6]} 33... Nxe5 {[%clk 0:00:15.1]} 34. Rd1 {[%clk 0:00:58.3]}
34... Re8 {[%clk 0:00:10.6]} 35. Ra8+ {[%clk 0:00:57.2]} 1-0